[Event "Open Nuevo Centro. Jornada 1"]
[Site "Chess.com"]
[Date "2020.06.19"]
[Round "8"]
[White "Birnoveanu, Petru"]
[Black "Simarro Peir�, Andr�s"]
[Result "1-0"]
[WhiteElo "1542"]
[BlackElo "1046"]
[TimeControl "180+2"]
[EndTime "11:58:09 PDT"]
[Termination "Victoria de piculet por jaque mate"]

1. e4 {[%clk 0:03:01.9]} 1... e5 {[%clk 0:03:00.2]} 2. Bc4 {[%clk 0:03:02.1]}
2... Nf6 {[%clk 0:02:56]} 3. d4 {[%clk 0:03:02.4]} 3... exd4 {[%clk 0:02:54.8]}
4. Nf3 {[%clk 0:03:02.5]} 4... Nc6 {[%clk 0:02:53.8]} 5. e5 {[%clk 0:03:00.7]}
5... Bb4+ {[%clk 0:02:50.4]} 6. c3 {[%clk 0:03:00.4]} 6... dxc3 {[%clk
0:02:44.4]} 7. bxc3 {[%clk 0:03:01.2]} 7... Qe7 {[%clk 0:02:37]} 8. cxb4 {[%clk
0:02:57.7]} 8... Qxb4+ {[%clk 0:02:32.6]} 9. Nbd2 {[%clk 0:02:57.9]} 9... Qe7
{[%clk 0:02:31.6]} 10. O-O {[%clk 0:02:57.5]} 10... Nxe5 {[%clk 0:02:30.9]} 11.
Nxe5 {[%clk 0:02:57.6]} 11... Qxe5 {[%clk 0:02:29.6]} 12. Re1 {[%clk 0:02:58]}
12... Ne4 {[%clk 0:02:30]} 13. Rxe4 {[%clk 0:02:57.9]} 13... Qxe4 {[%clk
0:02:25.7]} 14. Nxe4 {[%clk 0:02:58.3]} 14... f5 {[%clk 0:02:25.1]} 15. Ng5
{[%clk 0:02:57.3]} 15... h6 {[%clk 0:02:25.6]} 16. Qe2+ {[%clk 0:02:56.1]} 16...
Kf8 {[%clk 0:02:24.5]} 17. Qh5 {[%clk 0:02:53.2]} 17... g6 {[%clk 0:02:23.3]}
18. Qxg6 {[%clk 0:02:50.1]} 18... Ke7 {[%clk 0:02:19.8]} 19. Qg7+ {[%clk
0:02:48.7]} 19... Kd6 {[%clk 0:02:19.3]} 20. Ba3+ {[%clk 0:02:46.7]} 20... Kc6
{[%clk 0:02:19.2]} 21. Qxh8 {[%clk 0:02:42.8]} 21... Kb6 {[%clk 0:02:18.2]} 22.
Qf6+ {[%clk 0:02:40.4]} 22... d6 {[%clk 0:02:16.1]} 23. Qxh6 {[%clk 0:02:38.3]}
23... c5 {[%clk 0:02:13.3]} 24. Qxd6+ {[%clk 0:02:37.4]} 24... Ka5 {[%clk
0:02:13.5]} 25. Qxc5+ {[%clk 0:02:32.1]} 25... Ka4 {[%clk 0:02:10.2]} 26. Qb4#
{[%clk 0:02:31.2]} 1

[Event "Open Nuevo Centro. Jornada 1"]
[Site "Chess.com"]
[Date "2020.06.19"]
[Round "8"]
[White "Aymerich Rosell, Pablo"]
[Black "Salvador Buiza, Victor"]
[Result "1-0"]
[WhiteElo "1994"]
[BlackElo "1566"]
[TimeControl "180+2"]
[EndTime "11:59:17 PDT"]
[Termination "Victoria de jasikevic por jaque mate"]

1. d4 {[%clk 0:03:01.9]} 1... d5 {[%clk 0:03:00.5]} 2. Nf3 {[%clk 0:03:01.3]}
2... Nf6 {[%clk 0:03:00.8]} 3. g3 {[%clk 0:03:01.8]} 3... Bf5 {[%clk 0:02:58.4]}
4. Bg2 {[%clk 0:03:02.1]} 4... e6 {[%clk 0:02:59.2]} 5. O-O {[%clk 0:03:02.7]}
5... Bd6 {[%clk 0:02:59.3]} 6. b3 {[%clk 0:03:01]} 6... O-O {[%clk 0:02:56.1]}
7. Bb2 {[%clk 0:03:01.8]} 7... c5 {[%clk 0:02:53.6]} 8. dxc5 {[%clk 0:03:00.2]}
8... Bxc5 {[%clk 0:02:55.5]} 9. a3 {[%clk 0:02:59.7]} 9... Nc6 {[%clk
0:02:56.5]} 10. b4 {[%clk 0:03:00.7]} 10... Bd6 {[%clk 0:02:57.4]} 11. Nbd2
{[%clk 0:02:59.7]} 11... a6 {[%clk 0:02:58.5]} 12. c4 {[%clk 0:03:00.6]} 12...
dxc4 {[%clk 0:02:56.8]} 13. Nxc4 {[%clk 0:03:01]} 13... Bc7 {[%clk 0:02:58]} 14.
Qxd8 {[%clk 0:02:53.2]} 14... Raxd8 {[%clk 0:02:56.4]} 15. Rfd1 {[%clk
0:02:48.5]} 15... Nd5 {[%clk 0:02:45.3]} 16. Nd4 {[%clk 0:02:32.7]} 16... Nxd4
{[%clk 0:02:43.4]} 17. Bxd4 {[%clk 0:02:30.8]} 17... f6 {[%clk 0:02:39.7]} 18.
e4 {[%clk 0:02:23.7]} 18... e5 {[%clk 0:02:35.7]} 19. Bb2 {[%clk 0:02:17.7]}
19... Bxe4 {[%clk 0:02:32.4]} 20. Bxe4 {[%clk 0:02:16]} 20... Nb6 {[%clk
0:02:34.3]} 21. Nxb6 {[%clk 0:02:12.7]} 21... Bxb6 {[%clk 0:02:36.2]} 22. Bxb7
{[%clk 0:02:11.7]} 22... Bd4 {[%clk 0:02:24.9]} 23. Bxd4 {[%clk 0:02:08.4]}
23... exd4 {[%clk 0:02:24.9]} 24. Bxa6 {[%clk 0:02:08.1]} 24... Rd6 {[%clk
0:02:25.5]} 25. Bc4+ {[%clk 0:02:07.1]} 25... Kh8 {[%clk 0:02:24]} 26. Rd3
{[%clk 0:02:07.9]} 26... Rc8 {[%clk 0:02:24.6]} 27. Bb3 {[%clk 0:02:06.5]} 27...
Rc3 {[%clk 0:02:22.3]} 28. Rad1 {[%clk 0:02:06.8]} 28... h6 {[%clk 0:02:19]} 29.
Rxc3 {[%clk 0:02:06.8]} 29... dxc3 {[%clk 0:02:19.5]} 30. Rxd6 {[%clk
0:02:07.1]} 30... c2 {[%clk 0:02:21.4]} 31. Bxc2 {[%clk 0:02:07.6]} 31... g5
{[%clk 0:02:12]} 32. Rd7 {[%clk 0:02:02.6]} 32... f5 {[%clk 0:02:11.6]} 33. b5
{[%clk 0:02:03.8]} 33... f4 {[%clk 0:02:13.5]} 34. b6 {[%clk 0:02:05.1]} 34...
fxg3 {[%clk 0:02:15]} 35. b7 {[%clk 0:02:06]} 35... gxh2+ {[%clk 0:02:16.5]} 36.
Kh1 {[%clk 0:02:06.5]} 36... g4 {[%clk 0:02:18]} 37. b8=Q# {[%clk 0:02:07.1]}
1

[Event "Open Nuevo Centro. Jornada 1"]
[Site "Chess.com"]
[Date "2020.06.19"]
[Round "8"]
[White "Bosch Jord�, Ricard"]
[Black "Aguado, Pablo Luis"]
[Result "0-1"]
[WhiteElo "1622"]
[BlackElo "1560"]
[TimeControl "180+2"]
[EndTime "11:59:33 PDT"]
[Termination "Victoria de PLAD_2006 por abandono"]

1. e4 {[%clk 0:03:01.9]} 1... e5 {[%clk 0:02:59.6]} 2. Nf3 {[%clk 0:03:01.7]}
2... Nf6 {[%clk 0:03:00.1]} 3. Nc3 {[%clk 0:03:00.2]} 3... Bb4 {[%clk 0:03:00]}
4. Bc4 {[%clk 0:02:53.1]} 4... O-O {[%clk 0:02:56.9]} 5. d3 {[%clk 0:02:48.6]}
5... c6 {[%clk 0:02:55.6]} 6. h3 {[%clk 0:02:46.9]} 6... d5 {[%clk 0:02:56.4]}
7. exd5 {[%clk 0:02:44.5]} 7... cxd5 {[%clk 0:02:58.3]} 8. Bb3 {[%clk
0:02:42.6]} 8... d4 {[%clk 0:02:59.3]} 9. a3 {[%clk 0:02:43.7]} 9... Ba5 {[%clk
0:03:00.4]} 10. O-O {[%clk 0:02:41.5]} 10... dxc3 {[%clk 0:03:01.1]} 11. bxc3
{[%clk 0:02:39.2]} 11... Bxc3 {[%clk 0:03:01.9]} 12. Rb1 {[%clk 0:02:39.6]}
12... Nc6 {[%clk 0:03:02.9]} 13. Bg5 {[%clk 0:02:37.8]} 13... h6 {[%clk
0:02:53.2]} 14. Bh4 {[%clk 0:02:35.9]} 14... e4 {[%clk 0:02:42.5]} 15. Nd2
{[%clk 0:02:28.3]} 15... exd3 {[%clk 0:02:35.2]} 16. Ne4 {[%clk 0:02:27.9]}
16... Be5 {[%clk 0:02:30.6]} 17. cxd3 {[%clk 0:02:13.1]} 17... Bf5 {[%clk
0:02:26.9]} 18. f4 {[%clk 0:01:59.8]} 18... Bd4+ {[%clk 0:02:23.9]} 19. Kh1
{[%clk 0:02:00.1]} 19... Qc7 {[%clk 0:02:08.7]} 20. Nxf6+ {[%clk 0:01:44.1]}
20... Bxf6 {[%clk 0:02:07.6]} 21. Bxf6 {[%clk 0:01:44.1]} 21... gxf6 {[%clk
0:02:09.5]} 22. Qh5 {[%clk 0:01:41.2]} 22... Bxd3 {[%clk 0:01:43.6]} 23. Qg6+
{[%clk 0:01:28.7]} 23... Bxg6 {[%clk 0:01:42.2]} 0

[Event "Open Nuevo Centro. Jornada 1"]
[Site "Chess.com"]
[Date "2020.06.19"]
[Round "8"]
[White "Gimenez Sanchis, Jose Antonio"]
[Black "Perrot, Fabien "]
[Result "1-0"]
[WhiteElo "1422"]
[BlackElo "980"]
[TimeControl "180+2"]
[EndTime "11:59:35 PDT"]
[Termination "Victoria de migesoj por abandono"]

1. c4 {[%clk 0:03:01.9]} 1... Nf6 {[%clk 0:02:57.5]} 2. Nc3 {[%clk 0:03:01.9]}
2... e5 {[%clk 0:02:54]} 3. g3 {[%clk 0:03:03]} 3... Be7 {[%clk 0:02:52.3]} 4.
Bg2 {[%clk 0:03:04.2]} 4... O-O {[%clk 0:02:51.4]} 5. d3 {[%clk 0:03:05.2]} 5...
c6 {[%clk 0:02:50.3]} 6. Nf3 {[%clk 0:03:06.2]} 6... d5 {[%clk 0:02:41.9]} 7.
cxd5 {[%clk 0:03:02.5]} 7... Nxd5 {[%clk 0:02:41.7]} 8. Nxe5 {[%clk 0:03:00.5]}
8... f6 {[%clk 0:02:16.7]} 9. Nf3 {[%clk 0:03:00.9]} 9... Bb4 {[%clk 0:02:12.9]}
10. Bd2 {[%clk 0:03:00.4]} 10... Be6 {[%clk 0:02:08.3]} 11. O-O {[%clk
0:03:00.1]} 11... Re8 {[%clk 0:02:06.2]} 12. a3 {[%clk 0:03:00.1]} 12... Nxc3
{[%clk 0:01:53.8]} 13. bxc3 {[%clk 0:02:59.1]} 13... Bf8 {[%clk 0:01:46.7]} 14.
a4 {[%clk 0:02:55.2]} 14... a5 {[%clk 0:01:44.1]} 15. Rb1 {[%clk 0:02:55.4]}
15... b6 {[%clk 0:01:42.2]} 16. c4 {[%clk 0:02:50.7]} 16... Nd7 {[%clk
0:01:35.9]} 17. Be3 {[%clk 0:02:50.5]} 17... Rb8 {[%clk 0:01:33.8]} 18. Nd4
{[%clk 0:02:50.5]} 18... Qc7 {[%clk 0:01:30.2]} 19. Nxc6 {[%clk 0:02:34.6]}
19... Rbc8 {[%clk 0:00:44.4]} 20. Nd4 {[%clk 0:02:31.8]} 20... Bf7 {[%clk
0:00:40.5]} 21. Nb5 {[%clk 0:02:29.6]} 21... Qb7 {[%clk 0:00:36.7]} 22. Bxb7
{[%clk 0:02:24.2]} 1

[Event "Open Nuevo Centro. Jornada 1"]
[Site "Chess.com"]
[Date "2020.06.19"]
[Round "8"]
[White "Lloret Ramis, Juan Jos�"]
[Black "Zamora Soler, Raul"]
[Result "1-0"]
[WhiteElo "1982"]
[BlackElo "1755"]
[TimeControl "180+2"]
[EndTime "12:00:01 PDT"]
[Termination "Victoria de Amiplim por jaque mate"]

1. c4 {[%clk 0:03:01.9]} 1... c5 {[%clk 0:02:59.1]} 2. Nc3 {[%clk 0:03:03.2]}
2... Nc6 {[%clk 0:02:54.3]} 3. Nf3 {[%clk 0:03:04.6]} 3... g6 {[%clk 0:02:52.8]}
4. g3 {[%clk 0:03:05.8]} 4... Bg7 {[%clk 0:02:54]} 5. Bg2 {[%clk 0:03:07.1]}
5... d6 {[%clk 0:02:55.5]} 6. O-O {[%clk 0:03:08]} 6... e5 {[%clk 0:02:56.7]} 7.
e3 {[%clk 0:03:07.3]} 7... Nge7 {[%clk 0:02:57.9]} 8. d4 {[%clk 0:03:08.1]} 8...
exd4 {[%clk 0:02:58.8]} 9. exd4 {[%clk 0:03:08.7]} 9... Nxd4 {[%clk 0:02:59.8]}
10. Nxd4 {[%clk 0:03:09.8]} 10... Bxd4 {[%clk 0:03:00.8]} 11. Nb5 {[%clk
0:03:10.8]} 11... Nf5 {[%clk 0:02:19.5]} 12. g4 {[%clk 0:03:10.9]} 12... a6
{[%clk 0:02:14.1]} 13. Re1+ {[%clk 0:02:44.4]} 13... Kf8 {[%clk 0:02:05.2]} 14.
Nxd4 {[%clk 0:02:39.3]} 14... Nxd4 {[%clk 0:02:05.8]} 15. Bh6+ {[%clk
0:02:38.9]} 15... Kg8 {[%clk 0:02:05.2]} 16. Qd2 {[%clk 0:02:29.3]} 16... Bxg4
{[%clk 0:02:02.2]} 17. Qf4 {[%clk 0:02:09.2]} 17... Bf5 {[%clk 0:01:57.2]} 18.
Bg5 {[%clk 0:02:03.1]} 18... f6 {[%clk 0:01:41.4]} 19. Bd5+ {[%clk 0:02:03.2]}
19... Ne6 {[%clk 0:01:17.5]} 20. Rxe6 {[%clk 0:01:46.3]} 20... Bxe6 {[%clk
0:01:14.9]} 21. Bxe6+ {[%clk 0:01:46.3]} 21... Kf8 {[%clk 0:01:15.4]} 22. Bxf6
{[%clk 0:01:45.3]} 22... Qb6 {[%clk 0:01:09.7]} 23. Bg5+ {[%clk 0:01:29.1]}
23... Ke8 {[%clk 0:01:09.7]} 24. Qf7# {[%clk 0:01:29.6]} 1

[Event "Open Nuevo Centro. Jornada 1"]
[Site "Chess.com"]
[Date "2020.06.19"]
[Round "8"]
[White "Yatseta Fernandez, Marc Kazymyr"]
[Black "Hern�ndez Tom�s, Efr�n"]
[Result "1-0"]
[WhiteElo "1396"]
[BlackElo "971"]
[TimeControl "180+2"]
[EndTime "12:00:11 PDT"]
[Termination "Victoria de K_73 por abandono"]

1. d4 {[%clk 0:03:00.3]} 1... d5 {[%clk 0:02:56.8]} 2. c4 {[%clk 0:03:01.5]}
2... e6 {[%clk 0:02:52.1]} 3. g3 {[%clk 0:03:02.9]} 3... Nf6 {[%clk 0:02:52.5]}
4. Bg2 {[%clk 0:03:02.1]} 4... Bb4+ {[%clk 0:02:53.9]} 5. Bd2 {[%clk 0:03:02]}
5... Bxd2+ {[%clk 0:02:53]} 6. Nxd2 {[%clk 0:03:03.9]} 6... O-O {[%clk
0:02:52.3]} 7. Ngf3 {[%clk 0:03:05.3]} 7... b6 {[%clk 0:02:52.6]} 8. O-O {[%clk
0:03:06.6]} 8... Nc6 {[%clk 0:02:52.7]} 9. Rc1 {[%clk 0:03:05.8]} 9... Bb7
{[%clk 0:02:53.5]} 10. Re1 {[%clk 0:03:01.3]} 10... Nb4 {[%clk 0:02:49.2]} 11.
a3 {[%clk 0:02:57.5]} 11... Nc6 {[%clk 0:02:42.4]} 12. b4 {[%clk 0:02:56.1]}
12... Ne4 {[%clk 0:02:33.9]} 13. Nxe4 {[%clk 0:02:54.3]} 13... dxe4 {[%clk
0:02:33.4]} 14. Nd2 {[%clk 0:02:47.2]} 14... Nxd4 {[%clk 0:02:29.1]} 15. Nxe4
{[%clk 0:02:41.7]} 15... Bxe4 {[%clk 0:02:27.2]} 16. Bxe4 {[%clk 0:02:42.3]}
16... f5 {[%clk 0:02:23.4]} 17. Bxa8 {[%clk 0:02:42.1]} 17... Qxa8 {[%clk
0:02:08.9]} 18. Qxd4 {[%clk 0:02:41.8]} 18... Rd8 {[%clk 0:02:06.7]} 19. Qe5
{[%clk 0:02:38.3]} 19... Qc6 {[%clk 0:02:02.8]} 20. Red1 {[%clk 0:02:34.5]}
20... Rxd1+ {[%clk 0:02:00.3]} 21. Rxd1 {[%clk 0:02:36.4]} 21... Kf7 {[%clk
0:01:55.7]} 22. c5 {[%clk 0:02:25.6]} 22... bxc5 {[%clk 0:01:55.6]} 23. Qxc5
{[%clk 0:02:26.3]} 23... Qa4 {[%clk 0:01:35.1]} 24. Qxc7+ {[%clk 0:02:24.3]}
24... Kf6 {[%clk 0:01:35.8]} 25. Qc3+ {[%clk 0:02:16.4]} 25... Kg6 {[%clk
0:01:31.1]} 26. Rd6 {[%clk 0:02:12.9]} 26... Qb5 {[%clk 0:01:19.2]} 27. Rxe6+
{[%clk 0:02:05.5]} 27... Kf7 {[%clk 0:01:18.8]} 28. Rc6 {[%clk 0:01:57.5]} 28...
Qxe2 {[%clk 0:01:17.1]} 29. Qc4+ {[%clk 0:01:58]} 29... Kf8 {[%clk 0:01:08.4]}
30. Qxe2 {[%clk 0:01:56.1]} 1

[Event "Open Nuevo Centro. Jornada 1"]
[Site "Chess.com"]
[Date "2020.06.19"]
[Round "8"]
[White "Yeste Campos, Manuel"]
[Black "Serradilla Revert, Rodrigo"]
[Result "1-0"]
[WhiteElo "909"]
[BlackElo "612"]
[TimeControl "180+2"]
[EndTime "12:00:26 PDT"]
[Termination "Victoria de Manuel_Yeste por abandono"]

1. e4 {[%clk 0:03:01.9]} 1... e5 {[%clk 0:02:59.7]} 2. Nf3 {[%clk 0:03:02.5]}
2... f6 {[%clk 0:02:58.6]} 3. Nxe5 {[%clk 0:03:02.5]} 3... d6 {[%clk 0:02:56.7]}
4. Nf3 {[%clk 0:02:57.2]} 4... c6 {[%clk 0:02:51.2]} 5. d4 {[%clk 0:02:57.6]}
5... Qa5+ {[%clk 0:02:47.8]} 6. Bd2 {[%clk 0:02:55.3]} 6... Qd8 {[%clk
0:02:39.2]} 7. Nc3 {[%clk 0:02:52.8]} 7... d5 {[%clk 0:02:38.1]} 8. exd5 {[%clk
0:02:52.4]} 8... cxd5 {[%clk 0:02:38.4]} 9. Bd3 {[%clk 0:02:44.1]} 9... Bd6
{[%clk 0:02:35.6]} 10. O-O {[%clk 0:02:44.2]} 10... Nh6 {[%clk 0:02:27.9]} 11.
Nxd5 {[%clk 0:02:43.1]} 11... O-O {[%clk 0:02:23.3]} 12. Bxh6 {[%clk 0:02:36.3]}
12... gxh6 {[%clk 0:02:20.5]} 13. Qd2 {[%clk 0:02:35.8]} 13... h5 {[%clk
0:02:07.4]} 14. Qh6 {[%clk 0:02:33.8]} 14... Qd7 {[%clk 0:02:01.9]} 15. Rfe1
{[%clk 0:02:31.2]} 15... Kh8 {[%clk 0:01:53.3]} 16. Nxf6 {[%clk 0:02:27.6]}
16... Bf4 {[%clk 0:01:47.8]} 17. Nxd7 {[%clk 0:02:23.3]} 17... Bxh6 {[%clk
0:01:46.8]} 18. Nxf8 {[%clk 0:02:19.8]} 18... Bxf8 {[%clk 0:01:45.6]} 19. Re8
{[%clk 0:02:19.8]} 19... Nd7 {[%clk 0:01:39.1]} 20. Bf5 {[%clk 0:02:13.6]} 20...
Nf6 {[%clk 0:01:34.5]} 21. Rxf8+ {[%clk 0:02:12.5]} 21... Kg7 {[%clk 0:01:31.2]}
22. Rd8 {[%clk 0:02:06]} 22... b6 {[%clk 0:01:17.4]} 23. Bxc8 {[%clk 0:02:01.5]}
23... Rxc8 {[%clk 0:01:14.9]} 24. Rxc8 {[%clk 0:02:02.3]} 24... Ne4 {[%clk
0:01:11.5]} 25. Re8 {[%clk 0:02:00]} 25... Nc5 {[%clk 0:01:04.2]} 26. Re7+
{[%clk 0:01:59.8]} 26... Kf6 {[%clk 0:01:01.7]} 27. Rxa7 {[%clk 0:01:54.8]}
27... Ne6 {[%clk 0:00:53.6]} 28. d5 {[%clk 0:01:54.1]} 28... Nd4 {[%clk
0:00:49.4]} 1

[Event "Open Nuevo Centro. Jornada 1"]
[Site "Chess.com"]
[Date "2020.06.19"]
[Round "8"]
[White "Amor�s P�rez, Manuel David"]
[Black "Alegre Romaguera, Francesc"]
[Result "1-0"]
[WhiteElo "1658"]
[BlackElo "1259"]
[TimeControl "180+2"]
[EndTime "12:00:50 PDT"]
[Termination "Victoria de mpad1984 por jaque mate"]

1. e4 {[%clk 0:03:01.9]} 1... c5 {[%clk 0:03:01.2]} 2. Nf3 {[%clk 0:03:02.6]}
2... d6 {[%clk 0:03:02.1]} 3. d4 {[%clk 0:03:03.1]} 3... cxd4 {[%clk 0:03:04]}
4. Nxd4 {[%clk 0:03:04.3]} 4... Nf6 {[%clk 0:03:05.3]} 5. Nc3 {[%clk 0:03:05.3]}
5... a6 {[%clk 0:03:06.3]} 6. Nf3 {[%clk 0:03:06.4]} 6... e5 {[%clk 0:03:04.2]}
7. Bg5 {[%clk 0:03:06.3]} 7... Be7 {[%clk 0:03:04.4]} 8. Be2 {[%clk 0:03:02.5]}
8... O-O {[%clk 0:03:03.6]} 9. O-O {[%clk 0:03:02.9]} 9... Nbd7 {[%clk
0:03:03.9]} 10. Qd2 {[%clk 0:02:59.1]} 10... b5 {[%clk 0:03:04.4]} 11. a3 {[%clk
0:02:59.7]} 11... Bb7 {[%clk 0:03:05.2]} 12. Bxf6 {[%clk 0:02:58.9]} 12... Nxf6
{[%clk 0:03:06.4]} 13. Bd3 {[%clk 0:02:57.6]} 13... Qc7 {[%clk 0:02:58.7]} 14.
Rfe1 {[%clk 0:02:56.2]} 14... Rfd8 {[%clk 0:02:58.9]} 15. Rad1 {[%clk
0:02:44.2]} 15... Rac8 {[%clk 0:02:40.6]} 16. Bf1 {[%clk 0:02:43.4]} 16... Qc5
{[%clk 0:02:31.4]} 17. Rc1 {[%clk 0:02:33.1]} 17... d5 {[%clk 0:02:00.6]} 18.
exd5 {[%clk 0:02:31.9]} 18... Nxd5 {[%clk 0:01:50.6]} 19. Nxd5 {[%clk
0:02:27.1]} 19... Rxd5 {[%clk 0:01:45.1]} 20. Qe2 {[%clk 0:02:22.5]} 20... Bf6
{[%clk 0:01:37.7]} 21. c3 {[%clk 0:02:23.1]} 21... Re8 {[%clk 0:01:27.4]} 22.
Nd2 {[%clk 0:02:23.2]} 22... Qc6 {[%clk 0:01:16.5]} 23. Ne4 {[%clk 0:02:19]}
23... Re6 {[%clk 0:00:59]} 24. f3 {[%clk 0:02:12.9]} 24... Bh4 {[%clk
0:00:54.9]} 25. Red1 {[%clk 0:02:13.5]} 25... Rxd1 {[%clk 0:00:43.2]} 26. Rxd1
{[%clk 0:02:14]} 26... Qb6+ {[%clk 0:00:44]} 27. Kh1 {[%clk 0:02:13.4]} 27...
Bxe4 {[%clk 0:00:41.3]} 28. Qxe4 {[%clk 0:02:14.5]} 28... Bf6 {[%clk 0:00:32.5]}
29. Qa8+ {[%clk 0:02:11]} 29... Bd8 {[%clk 0:00:16.4]} 30. Rxd8+ {[%clk
0:02:10.6]} 30... Qxd8 {[%clk 0:00:15.2]} 31. Qxd8+ {[%clk 0:02:11.3]} 31... Re8
{[%clk 0:00:16.1]} 32. Qxe8# {[%clk 0:02:12.3]} 1

[Event "Open Nuevo Centro. Jornada 1"]
[Site "Chess.com"]
[Date "2020.06.19"]
[Round "8"]
[White "Ferrando Lacruz, Nicol�s "]
[Black "Martinez Villena, David"]
[Result "0-1"]
[WhiteElo "1365"]
[BlackElo "1710"]
[TimeControl "180+2"]
[EndTime "12:00:52 PDT"]
[Termination "Victoria de DavidMVAlaquas por jaque mate"]

1. d4 {[%clk 0:03:01.8]} 1... Nf6 {[%clk 0:02:59.8]} 2. Nf3 {[%clk 0:03:00.8]}
2... e6 {[%clk 0:02:59.4]} 3. Bf4 {[%clk 0:03:00.5]} 3... c5 {[%clk 0:02:58.9]}
4. e3 {[%clk 0:02:54.3]} 4... Nc6 {[%clk 0:02:53.7]} 5. Bd3 {[%clk 0:02:52.5]}
5... d5 {[%clk 0:02:53.4]} 6. Nbd2 {[%clk 0:02:48.8]} 6... Bd6 {[%clk
0:02:51.7]} 7. Ne5 {[%clk 0:02:46.8]} 7... Qc7 {[%clk 0:02:46.4]} 8. Qf3 {[%clk
0:02:40.9]} 8... Nxe5 {[%clk 0:02:25.9]} 9. Bxe5 {[%clk 0:02:36.6]} 9... Bxe5
{[%clk 0:02:25.5]} 10. dxe5 {[%clk 0:02:35]} 10... Qxe5 {[%clk 0:02:26.5]} 11.
e4 {[%clk 0:02:23.1]} 11... O-O {[%clk 0:02:20.4]} 12. O-O {[%clk 0:02:17.3]}
12... b6 {[%clk 0:02:10.3]} 13. Qh3 {[%clk 0:02:12.5]} 13... c4 {[%clk
0:01:59.5]} 14. Be2 {[%clk 0:02:08]} 14... b5 {[%clk 0:01:59.4]} 15. b3 {[%clk
0:02:07.6]} 15... Nxe4 {[%clk 0:01:25.3]} 16. bxc4 {[%clk 0:02:04.3]} 16... Nxd2
{[%clk 0:01:21.1]} 17. Rfd1 {[%clk 0:02:03.7]} 17... Nxc4 {[%clk 0:01:17.6]} 18.
Bd3 {[%clk 0:02:03.7]} 18... g6 {[%clk 0:01:17]} 19. Re1 {[%clk 0:02:02.2]}
19... Qf6 {[%clk 0:01:13.5]} 20. g3 {[%clk 0:01:55.1]} 20... e5 {[%clk
0:01:13.6]} 21. f4 {[%clk 0:01:55.5]} 21... Bxh3 {[%clk 0:01:13.1]} 22. fxe5
{[%clk 0:01:44.9]} 22... Nxe5 {[%clk 0:01:12]} 23. Rab1 {[%clk 0:01:37.4]} 23...
Nf3+ {[%clk 0:01:09.2]} 24. Kf2 {[%clk 0:01:29.1]} 24... Nxe1+ {[%clk
0:01:06.7]} 25. Kxe1 {[%clk 0:01:20.2]} 25... Qc3+ {[%clk 0:01:01.4]} 26. Kd1
{[%clk 0:01:18.8]} 26... Rfe8 {[%clk 0:01:00.5]} 27. Bxb5 {[%clk 0:01:17.9]}
27... Re1# {[%clk 0:00:59.8]} 0

[Event "Open Nuevo Centro. Jornada 1"]
[Site "Chess.com"]
[Date "2020.06.19"]
[Round "8"]
[White "Kovacevic, Slobodan"]
[Black "Borissov, Juli�n"]
[Result "1-0"]
[WhiteElo "2060"]
[BlackElo "1846"]
[TimeControl "180+2"]
[EndTime "12:01:28 PDT"]
[Termination "Victoria de nikko110 por abandono"]

1. d4 {[%clk 0:03:01.9]} 1... Nf6 {[%clk 0:02:52.2]} 2. Nf3 {[%clk 0:03:00.3]}
2... e6 {[%clk 0:02:51.4]} 3. Bf4 {[%clk 0:02:58.3]} 3... c5 {[%clk 0:02:50.5]}
4. e3 {[%clk 0:02:57.1]} 4... Be7 {[%clk 0:02:48.4]} 5. h3 {[%clk 0:02:55.7]}
5... O-O {[%clk 0:02:48]} 6. Nbd2 {[%clk 0:02:54.2]} 6... Nc6 {[%clk 0:02:48.6]}
7. c3 {[%clk 0:02:52.8]} 7... b6 {[%clk 0:02:42.6]} 8. Bd3 {[%clk 0:02:51.1]}
8... Bb7 {[%clk 0:02:39.2]} 9. O-O {[%clk 0:02:49.3]} 9... Re8 {[%clk
0:02:35.4]} 10. Qe2 {[%clk 0:02:48]} 10... d6 {[%clk 0:02:31.4]} 11. Bh2 {[%clk
0:02:46.7]} 11... Bf8 {[%clk 0:02:26.9]} 12. Rfd1 {[%clk 0:02:45.3]} 12... a6
{[%clk 0:02:21.2]} 13. a4 {[%clk 0:02:43.6]} 13... Qe7 {[%clk 0:02:00.3]} 14.
Nc4 {[%clk 0:02:38.4]} 14... Qd8 {[%clk 0:01:53.2]} 15. dxc5 {[%clk 0:02:34.4]}
15... bxc5 {[%clk 0:01:42.8]} 16. Bxd6 {[%clk 0:02:31.8]} 16... Kh8 {[%clk
0:01:04.3]} 17. Bxh7 {[%clk 0:02:19.6]} 17... Nd5 {[%clk 0:01:01.6]} 18. Bxf8
{[%clk 0:02:12]} 18... Rxf8 {[%clk 0:01:01.1]} 19. Bc2 {[%clk 0:02:10.3]} 19...
Qc7 {[%clk 0:00:52.5]} 20. Ng5 {[%clk 0:02:06.7]} 20... g6 {[%clk 0:00:51.9]}
21. Qg4 {[%clk 0:02:03.6]} 21... Ne5 {[%clk 0:00:39.8]} 22. Qh4+ {[%clk
0:01:59.6]} 22... Kg7 {[%clk 0:00:40.6]} 23. Qh7+ {[%clk 0:01:54.1]} 23... Kf6
{[%clk 0:00:41.1]} 24. Ne4+ {[%clk 0:01:49.4]} 24... Ke7 {[%clk 0:00:41.7]} 25.
Ncd6 {[%clk 0:01:43.5]} 25... Rad8 {[%clk 0:00:25.5]} 26. Qh4+ {[%clk
0:01:28.6]} 26... Kd7 {[%clk 0:00:23.5]} 27. Nxb7 {[%clk 0:01:24.2]} 1

[Event "Open Nuevo Centro. Jornada 1"]
[Site "Chess.com"]
[Date "2020.06.19"]
[Round "8"]
[White "Valverde Alcaide, Miguel Alejandro"]
[Black "Fern�ndez Mart�n, Berta"]
[Result "1-0"]
[WhiteElo "916"]
[BlackElo "675"]
[TimeControl "180+2"]
[EndTime "12:01:35 PDT"]
[Termination "Victoria de mentafurterei por abandono"]

1. e4 {[%clk 0:03:01.9]} 1... e5 {[%clk 0:02:59.9]} 2. Nf3 {[%clk 0:03:00.2]}
2... Nc6 {[%clk 0:02:59.3]} 3. Bc4 {[%clk 0:02:54.1]} 3... Nf6 {[%clk
0:02:55.2]} 4. Ng5 {[%clk 0:02:43.9]} 4... d5 {[%clk 0:02:43.6]} 5. exd5 {[%clk
0:02:33.3]} 5... Nxd5 {[%clk 0:02:42.7]} 6. d4 {[%clk 0:02:24.9]} 6... Nxd4
{[%clk 0:02:08.8]} 7. Bxd5 {[%clk 0:02:16.8]} 7... Qxd5 {[%clk 0:02:02.7]} 8. f3
{[%clk 0:02:07.8]} 8... Bf5 {[%clk 0:01:43]} 9. Nc3 {[%clk 0:02:00.1]} 9...
Nxc2+ {[%clk 0:01:13.8]} 10. Kf1 {[%clk 0:01:52.1]} 10... Qc4+ {[%clk
0:00:48.8]} 11. Kf2 {[%clk 0:01:35.1]} 11... Bc5+ {[%clk 0:00:46.6]} 12. Kg3
{[%clk 0:01:33.6]} 12... O-O {[%clk 0:00:24.4]} 13. Qd5 {[%clk 0:00:46.7]} 13...
Qf4+ {[%clk 0:00:18.8]} 14. Bxf4 {[%clk 0:00:12.8]} 1